lending/lending_fUSD_20260411
["ID","MTS","AMOUNT","RATE_DAILY","PERIOD"]
[420293216,1775917833499,-1664.4736,8.926e-05,2]
[420293217,1775917833512,-914.55,8.938e-05,2]
[420293218,1775917833524,-1600.0,9.026e-05,2]
[420293219,1775917833534,-156.13670825,9.054e-05,2]
[420293220,1775917833551,-251.89,9.066e-05,2]
[420293221,1775917833565,-166.66,9.16e-05,2]
[420293222,1775917833578,-11421.75,9.242e-05,2]
[420293223,1775917833590,-150.0,9.3e-05,2]
[420293224,1775917833619,-389.17525049,9.353e-05,2]
[420293225,1775917833629,-271.10328338,9.37e-05,2]
[420293226,1775917833655,-219.22357342,9.37e-05,2]
[420293227,1775917833670,-500.0,9.37e-05,2]
[420293228,1775917833691,-268.21650148,9.37e-05,2]
[420293229,1775917833714,-500.0,9.37e-05,2]
[420293230,1775917833726,-280.07260173,9.37e-05,2]
[420293231,1775917833764,-500.0,9.37e-05,2]
[420293232,1775917833801,-500.0,9.37e-05,2]
[420293233,1775917833822,-150.0,9.37e-05,2]
[420293234,1775917833853,-81216.00734859,9.371e-05,2]
[420293235,1775917833891,-387.105,9.371e-05,2]
[420293236,1775917833908,-1615.14536651,9.371e-05,2]
[420293237,1775917833939,-778.30235021,9.371e-05,2]
[420293238,1775917837768,-3421.10597051,9.371e-05,2]
[420293239,1775917837784,-14162.908,9.371e-05,2]
[420293240,1775917837910,-1807.85877248,9.371e-05,2]
[420293241,1775917837925,-1257.68700571,9.371e-05,2]
[420293242,1775917838121,-1976.09516634,9.371e-05,2]
[420293243,1775917838143,-23987.60636241,9.371e-05,2]
[420293244,1775917838159,-1386.35636678,9.371e-05,2]
[420293245,1775917838186,-751.21878134,9.371e-05,2]
[420293319,1775917839945,-546.08299501,9.371e-05,2]
[420293320,1775917839960,-69022.59168721,9.371e-05,2]
[420293321,1775917839971,-544.2039824,9.371e-05,2]
[420293322,1775917840005,-2019.91513355,9.371e-05,2]
[420293323,1775917840720,-549.06168683,9.371e-05,2]
[420293337,1775917845659,-211.82191948,9.37e-05,2]
[420293338,1775917845679,-300.0,9.37e-05,2]
[420293339,1775917845694,-1259.96996432,9.371e-05,2]
[420293340,1775917845719,-314.55,9.371e-05,2]
[420293341,1775917845913,-1478.68059726,9.371e-05,2]
[420293342,1775917845926,-399.48050875,9.371e-05,2]
[420293343,1775917845981,-474.44051191,9.371e-05,2]
[420293344,1775917845994,-8956.57633807,9.371e-05,2]
[420293345,1775917846042,-42577.99654762,9.371e-05,2]
[420293346,1775917846057,-862.74353247,9.371e-05,2]
[420293348,1775917846074,-966.59,9.371e-05,2]
[420293349,1775917846096,-196381.44530325,9.371e-05,2]
[420293350,1775917846170,-2329.82121089,9.371e-05,2]
[420293351,1775917846190,-910.07126,9.371e-05,2]
[420293352,1775917846206,-4131.13748989,9.371e-05,2]
[420293359,1775918048311,500.0,0.00030137,120]
[420293360,1775918094694,500.0,0.00030137,120]
[420293361,1775918107275,500.0,0.00030137,120]
[420293366,1775918115613,500.0,0.00030137,120]
[420293367,1775918123168,500.0,0.00030137,120]
[420293368,1775918138167,500.0,0.00030137,120]
[420293369,1775918149669,500.0,0.00030137,120]
[420293371,1775918166550,500.0,0.00030137,120]
[420293372,1775918184561,500.0,0.00030137,120]
[420293373,1775918192822,500.0,0.00030137,120]
[420293374,1775918203858,507.4,0.00030137,120]
[420293378,1775918237583,856.23931172,0.0003013,120]
[420293379,1775918260262,573.8,0.0002963,120]
[420293381,1775918301992,500.0,0.00028767,120]
[420293382,1775918302137,500.0,0.00028767,120]
[420293383,1775918302669,500.0,0.00028767,120]
[420293384,1775918302785,500.0,0.00028767,120]
[420293385,1775918303176,500.0,0.00028767,120]
[420293386,1775918303270,500.0,0.00028767,120]
[420293387,1775918303414,216.03226345,0.00028767,120]
[420293388,1775918306357,500.0,0.0003013,120]
[420293389,1775918308132,500.0,0.0002963,120]
[420293390,1775918378996,500.0,0.00030137,120]
[420293391,1775918389404,500.0,0.00030137,120]
[420293392,1775918396461,2216.0,0.0002737,120]
[420293393,1775918397002,2216.0,0.0002737,120]
[420293396,1775918404891,172.0,0.00027822,120]
[420293397,1775918406049,172.0,0.00029213,120]
[420293398,1775918466529,500.0,0.00030137,120]
[420293399,1775918472239,158.0,0.00030137,120]
[420293403,1775918628800,3022.25,0.00030137,120]
[420293405,1775918828274,500.0,0.0003,120]
[420293406,1775918830617,500.0,0.000301,120]
[420293407,1775918831861,500.0,0.0003013,120]
[420293408,1775918845938,603.0,0.000301,120]
[420293409,1775918857634,500.0,0.0003013,120]
[420293410,1775918872593,550.0,0.00029,120]
[420293411,1775918893034,1557.0,0.0003013,120]
[420293412,1775918898068,500.0,0.0003013,120]
[420293413,1775918906149,501.0,0.000301,120]
[420293414,1775918913930,502.0,0.000301,120]
[420293415,1775918921299,503.0,0.000301,120]
[420293416,1775918931534,504.0,0.000301,120]
[420293417,1775918942970,250.0,0.0003013,120]
[420293418,1775918945332,505.0,0.000301,120]
[420293419,1775918949722,5000.0,0.00030137,120]
[420293420,1775918956038,150.0,0.000301,120]
[420293421,1775918964944,151.0,0.000301,120]
[420293422,1775918972609,152.0,0.000301,120]
[420293423,1775918984402,153.0,0.000301,120]
[420293424,1775918992686,154.0,0.000301,120]
[420293425,1775918996417,2409.0,0.0002737,120]
[420293426,1775919000897,155.0,0.000301,120]
[420293427,1775919010536,5023.1,0.00030137,120]
[420293428,1775919011987,156.0,0.000301,120]
[420293429,1775919018650,157.0,0.000301,120]
[420293430,1775919024678,158.0,0.000301,120]
[420293431,1775919029367,1000.0,0.0003013,120]
[420293432,1775919030994,159.0,0.000301,120]
[420293435,1775919032009,-250.0,8.845e-05,2]
[420293436,1775919032020,-103.32,8.845e-05,2]
[420293437,1775919032109,-157.62,8.845e-05,2]
[420293438,1775919032127,-132.43642929,9.18e-05,2]
[420293441,1775919032191,-157.62007071,9.18e-05,2]
[420293442,1775919032202,-149408.18297483,9.18e-05,2]
[420293443,1775919032222,-2187.89052827,9.18e-05,2]
[420293451,1775919037920,-500.0,9.179e-05,2]
[420293453,1775919037934,-500.0,9.179e-05,2]
[420293454,1775919037947,-500.0,9.179e-05,2]
[420293455,1775919037957,-500.0,9.179e-05,2]
[420293456,1775919037967,-362.003979,9.179e-05,2]
[420293457,1775919037982,-66267.28349027,9.18e-05,2]
[420293506,1775919040641,160.0,0.000301,120]
[420293515,1775919043214,-434.753083,9.18e-05,2]
[420293516,1775919043464,200.60172987,0.00030133,120]
[420293520,1775919046187,-101051.91712363,9.18e-05,2]
[420293521,1775919046199,-500.0,9.253e-05,2]
[420293522,1775919046220,-2500.0,9.271e-05,2]
[420293523,1775919046234,-156.13670825,9.271e-05,2]
[420293524,1775919046248,-150.0,9.279e-05,2]
[420293525,1775919046268,-300.0,9.279e-05,2]
[420293526,1775919046282,-300.0,9.279e-05,2]
[420293527,1775919046297,-254.0,9.279e-05,2]
[420293528,1775919046317,-1200.0,9.279e-05,2]
[420293529,1775919046336,-300.0,9.279e-05,2]
[420293530,1775919046345,-189.77229837,9.279e-05,2]
[420293531,1775919046368,-153.45650139,9.279e-05,2]
[420293532,1775919046389,-500.0,9.279e-05,2]
[420293533,1775919046408,-387.75155104,9.279e-05,2]
[420293534,1775919046431,-500.0,9.279e-05,2]
[420293535,1775919046442,-396.05082121,9.279e-05,2]
[420293537,1775919046460,-68989.88110501,9.28e-05,2]
[420293538,1775919046479,-11999.78,9.302e-05,2]
[420293539,1775919046490,-260.94,9.337e-05,2]
[420293540,1775919046514,-559.78413043,9.353e-05,2]
[420293541,1775919046523,-500.0,9.353e-05,2]
[420293542,1775919046535,-2000.0,9.366e-05,2]
[420293543,1775919046557,-3676.16,9.366e-05,2]
[420293544,1775919046568,-151.0,9.368e-05,2]
[420293545,1775919046578,-211.15,9.458e-05,2]
[420293546,1775919046591,-18608.73109654,9.471e-05,2]
[420293547,1775919046610,-5000.0,9.73e-05,2]
[420293548,1775919046621,-250.0,9.73e-05,2]
[420293549,1775919046631,-260.94,9.828e-05,2]
[420293550,1775919046643,-500.0,9.986e-05,2]
[420293551,1775919046653,-578.20924308,9.986e-05,2]
[420293552,1775919046663,-194.72792766,9.986e-05,2]
[420293553,1775919046673,-1328.27659266,9.986e-05,2]
[420293554,1775919046686,-500.0,9.986e-05,2]
[420293555,1775919046695,-8882.6885148,9.986e-05,2]
[420293556,1775919046705,-670.58624095,9.986e-05,2]
[420293557,1775919046715,-200.0,9.986e-05,2]
[420293558,1775919046727,-166.88232923,9.986e-05,2]
[420293559,1775919046737,-743.50770149,9.986e-05,2]
[420293560,1775919046749,-500.0,9.986e-05,2]
[420293561,1775919046760,-500.0,9.986e-05,2]
[420293562,1775919046770,-500.0,9.986e-05,2]
[420293563,1775919046781,-500.0,9.986e-05,2]
[420293564,1775919046792,-500.0,9.986e-05,2]
[420293565,1775919046802,-151.0,9.986e-05,2]
[420293566,1775919046813,-500.0,9.986e-05,2]
[420293567,1775919046823,-500.0,9.986e-05,2]
[420293568,1775919046832,-500.0,9.986e-05,2]
[420293569,1775919046847,-500.0,9.986e-05,2]
[420293570,1775919046857,-500.0,9.986e-05,2]
[420293571,1775919046867,-500.0,9.986e-05,2]
[420293572,1775919046876,-500.0,9.986e-05,2]
[420293573,1775919046890,-174.61919141,9.986e-05,2]
[420293574,1775919046901,-500.0,9.986e-05,2]
[420293575,1775919046911,-170.0,9.986e-05,2]
[420293576,1775919046921,-170.0,9.986e-05,2]
[420293577,1775919046933,-170.0,9.986e-05,2]
[420293578,1775919046945,-170.0,9.986e-05,2]
[420293579,1775919046956,-170.0,9.986e-05,2]
[420293580,1775919046966,-170.0,9.986e-05,2]
[420293581,1775919046977,-170.0,9.986e-05,2]
[420293582,1775919046994,-190.61621182,9.986e-05,2]
[420293583,1775919047003,-556.02393262,9.986e-05,2]
[420293584,1775919047014,-279.9045709,9.986e-05,2]
[420293585,1775919047037,-151.0,0.0001,2]
[420293586,1775919047046,-561.10535588,0.0001,2]
[420293587,1775919047057,-150.0,0.0001,2]
[420293588,1775919047067,-258.08520859,0.0001,2]
[420293589,1775919047090,-151.0,0.0001,2]
[420293590,1775919047099,-151.0,0.0001,2]
[420293591,1775919047110,-151.0,0.0001,2]
[420293592,1775919047123,-500.0,0.0001,2]
[420293593,1775919047136,-500.0,0.0001,2]
[420293594,1775919047146,-500.0,0.0001,2]
[420293595,1775919047164,-500.0,0.0001,2]
[420293596,1775919047177,-500.0,0.0001,2]
[420293597,1775919047186,-500.0,0.0001,2]
[420293598,1775919047202,-500.0,0.0001,2]
[420293599,1775919047219,-500.0,0.0001,2]
[420293600,1775919047232,-151.0,0.0001,2]
[420293601,1775919047247,-500.0,0.00010041,2]
[420293602,1775919047263,-9211.34798985,0.00010041,2]
[420293603,1775919047275,-151.0,0.00010041,2]
[420293604,1775919047290,-500.0,0.00010096,2]
[420293605,1775919047301,-9552.16786547,0.00010096,2]
[420293606,1775919047319,-151.0,0.00010096,2]
[420293607,1775919047335,-250.0,0.00010098,2]
[420293608,1775919047351,-15409.23,0.00010148,2]
[420293609,1775919047377,-500.0,0.00010151,2]
[420293610,1775919047400,-9905.5980765,0.00010151,2]
[420293611,1775919047435,-151.0,0.00010151,2]
[420293612,1775919047499,-1600.0,0.00010154,2]
[420293613,1775919047565,-500.0,0.00010206,2]
[420293614,1775919047591,-10272.10520533,0.00010206,2]
[420293615,1775919047620,-151.0,0.00010206,2]
[420293616,1775919047645,-255.0,0.00010207,2]
[420293617,1775919047666,-420.0,0.00010207,2]
[420293618,1775919047689,-420.0,0.00010207,2]
[420293619,1775919047708,-1680.0,0.00010207,2]
[420293620,1775919047718,-500.0,0.0001026,2]
[420293621,1775919047727,-500.0,0.00010261,2]
[420293622,1775919047754,-10652.17309792,0.00010261,2]
[420293623,1775919047764,-151.0,0.00010261,2]
[420293624,1775919047773,-346.96,0.00010271,2]
[420293625,1775919047791,-500.0,0.00010316,2]
[420293626,1775919047803,-11046.30350255,0.00010316,2]
[420293627,1775919047812,-151.0,0.00010316,2]
[420293628,1775919047822,-260.94,0.00010319,2]
[420293629,1775919047848,-500.0,0.00010371,2]
[420293630,1775919047859,-9486.97902788,0.00010371,2]
[420293631,1775919047949,-1968.03770426,0.00010371,2]
[420293632,1775919047960,-151.0,0.00010371,2]
[420293633,1775919047970,-370.24,0.00010382,2]
[420293634,1775919047995,-500.0,0.00010426,2]
[420293635,1775919048004,-2589.81142992,0.00010426,2]
[420293636,1775919048100,161.0,0.000301,120]
[420293637,1775919054214,162.0,0.000301,120]
[420293638,1775919065062,163.0,0.000301,120]
[420293639,1775919072572,164.0,0.000301,120]
[420293640,1775919079433,165.0,0.000301,120]
[420293641,1775919086337,166.0,0.000301,120]
[420293642,1775919092596,167.0,0.000301,120]
[420293643,1775919099878,168.0,0.000301,120]
[420293644,1775919105790,169.0,0.000301,120]
[420293645,1775919114040,10000.0,0.000301,120]
[420293646,1775919114510,170.0,0.000301,120]
[420293647,1775919126809,171.0,0.000301,120]
[420293648,1775919133717,172.0,0.000301,120]
[420293649,1775919142619,173.0,0.000301,120]
[420293650,1775919149723,174.0,0.000301,120]
[420293651,1775919158192,175.0,0.000301,120]
[420293652,1775919165300,176.0,0.000301,120]
[420293653,1775919172888,177.0,0.000301,120]
[420293654,1775919179555,178.0,0.000301,120]
[420293655,1775919187466,179.0,0.000301,120]
[420293656,1775919193399,180.0,0.000301,120]
[420293657,1775919200395,181.0,0.000301,120]
[420293658,1775919207380,182.0,0.000301,120]
[420293659,1775919217186,183.0,0.000301,120]
[420293660,1775919224381,184.0,0.000301,120]
[420293661,1775919231311,185.0,0.000301,120]
[420293662,1775919237771,186.0,0.000301,120]
[420293663,1775919245671,187.0,0.000301,120]
[420293664,1775919252044,188.0,0.000301,120]
[420293665,1775919257918,189.0,0.000301,120]
[420293666,1775919264400,190.0,0.000301,120]
[420293667,1775919270543,191.0,0.000301,120]
[420293668,1775919271850,300.0,0.000301,120]
[420293669,1775919277384,192.0,0.000301,120]
[420293670,1775919283290,193.0,0.000301,120]
[420293671,1775919290756,194.0,0.000301,120]
[420293672,1775919297285,195.0,0.000301,120]
[420293673,1775919304622,196.0,0.000301,120]
[420293674,1775919314660,197.0,0.000301,120]
[420293675,1775919320657,198.0,0.000301,120]
[420293676,1775919326789,199.0,0.000301,120]
[420293677,1775919336759,200.0,0.000301,120]
[420293678,1775919344825,650.0,0.000301,120]
[420293679,1775919356741,455.04,0.000301,120]
[420293680,1775919363945,1000.0,0.0003013,120]
[420293684,1775919597495,2440.0,0.0002737,120]
[420293685,1775919597576,1557.0,0.0003013,120]
[420293686,1775919597713,2440.0,0.0002737,120]
[420293687,1775919605954,611.49,0.00028767,120]
[420293688,1775919606281,611.49,0.00029425,120]
[420293689,1775919606617,611.49,0.00030082,120]
[420293690,1775919815593,1557.0,0.0003013,120]
[420293691,1775919823388,500.0,0.000301,120]
[420293692,1775919861114,367.95,0.00030137,120]
[420293693,1775919877917,381.28,0.00030136,120]
[420293706,1775919976899,507.6256352,0.00030137,120]
[420293707,1775920075884,500.0,0.0003,120]
[420293708,1775920087574,1000.0,0.0003,120]
[420293709,1775920105563,1500.0,0.0003,120]
[420293710,1775920108240,157.5,4.512e-05,2]
[420293711,1775920114808,1578.71343838,0.0003,120]
[420293712,1775920146755,508.71,0.00030137,120]
[420293713,1775920196466,2252.92376103,0.0002737,120]
[420293714,1775920200463,500.0,0.00030137,120]
[420293716,1775920231891,-620.68708841,9.088e-05,2]
[420293717,1775920231902,-250.0,9.109e-05,2]
[420293718,1775920231913,-1795.65064761,9.131e-05,2]
[420293719,1775920231925,-911.72705474,9.131e-05,2]
[420293720,1775920232013,-1218.33229765,9.131e-05,2]
[420293721,1775920232022,-200.0,9.172e-05,2]
[420293722,1775920232032,-300.0,9.177e-05,2]
[420293723,1775920232044,-300.0,9.177e-05,2]
[420293724,1775920232053,-1200.0,9.177e-05,2]
[420293725,1775920232063,-300.0,9.178e-05,2]
[420293726,1775920232072,-1200.0,9.178e-05,2]
[420293727,1775920232081,-500.0,9.179e-05,2]
[420293728,1775920232091,-578.20924308,9.179e-05,2]
[420293729,1775920232100,-500.0,9.179e-05,2]
[420293730,1775920232110,-160.97136525,9.179e-05,2]
[420293731,1775920232119,-481.98,9.192e-05,2]
[420293732,1775920232129,-500.0,9.234e-05,2]
[420293733,1775920232138,-500.0,9.289e-05,2]
[420293734,1775920232149,-500.0,9.344e-05,2]
[420293735,1775920232158,-500.0,9.399e-05,2]
[420293736,1775920232169,-500.0,9.454e-05,2]
[420293737,1775920232178,-500.0,9.49e-05,2]
[420293738,1775920232190,-1163.00354418,9.5e-05,2]
[420293739,1775920232201,-151.0,9.5e-05,2]
[420293740,1775920232210,-174.61919141,9.5e-05,2]
[420293741,1775920232222,-1852.42,9.506e-05,2]
[420293742,1775920232235,-500.0,9.509e-05,2]
[420293743,1775920232246,-1600.0,9.514e-05,2]
[420293744,1775920232255,-151.0,9.555e-05,2]
[420293745,1775920232267,-500.0,9.564e-05,2]
[420293746,1775920232279,-501.0,9.589e-05,2]
[420293747,1775920232291,-151.0,9.61e-05,2]
[420293748,1775920232300,-150.0,9.61e-05,2]
[420293749,1775920232324,-500.0,9.619e-05,2]
[420293750,1775920232337,-151.0,9.665e-05,2]
[420293751,1775920232347,-500.0,9.674e-05,2]
[420293752,1775920232379,-151.0,9.72e-05,2]
[420293753,1775920232392,-500.0,9.729e-05,2]
[420293754,1775920232410,-151.0,9.775e-05,2]
[420293755,1775920232431,-500.0,9.784e-05,2]
[420293756,1775920232474,-151.0,9.83e-05,2]
[420293757,1775920232514,-500.0,9.839e-05,2]
[420293758,1775920232564,-151.0,9.885e-05,2]
[420293759,1775920232622,-151.0,9.94e-05,2]
[420293761,1775920232702,-506.50023244,9.973e-05,2]
[420293763,1775920232739,-200.0,9.973e-05,2]
[420293764,1775920232765,-531.26575347,9.973e-05,2]
[420293765,1775920232787,-1015.95114918,9.973e-05,2]
[420293766,1775920232805,-743.50770149,9.973e-05,2]
[420293767,1775920232820,-500.0,9.973e-05,2]
[420293769,1775920232843,-500.0,9.973e-05,2]
[420293771,1775920232857,-500.0,9.973e-05,2]
[420293773,1775920232871,-500.0,9.973e-05,2]
[420293775,1775920232888,-500.0,9.973e-05,2]
[420293777,1775920232900,-500.0,9.973e-05,2]
[420293779,1775920232917,-500.0,9.973e-05,2]
[420293781,1775920232931,-500.0,9.973e-05,2]
[420293783,1775920232946,-279.9045709,9.973e-05,2]
[420293784,1775920232962,-500.0,9.973e-05,2]
[420293786,1775920232971,-500.0,9.973e-05,2]
[420293788,1775920232993,-500.0,9.973e-05,2]
[420293790,1775920233009,-500.0,9.973e-05,2]
[420293792,1775920233019,-500.0,9.973e-05,2]
[420293795,1775920233035,-151.0,9.995e-05,2]
[420293797,1775920233051,-155.80840127,9.997e-05,2]
[420293798,1775920233062,-5000.0,9.997e-05,2]
[420293800,1775920233078,-983.04,9.997e-05,2]
[420293802,1775920233092,-193.0,9.997e-05,2]
[420293804,1775920233102,-327.67,9.997e-05,2]
[420293806,1775920233115,-250.0,9.997e-05,2]
[420293808,1775920233130,-200.0,0.0001,2]
[420293810,1775920233143,-151.0,0.0001,2]
[420293812,1775920233155,-181.08010149,0.00010048,2]
[420293815,1775920233167,-151.0,0.0001005,2]
[420293816,1775920233181,-350.0,0.00010069,2]
[420293819,1775920233191,-250.0,0.0001009,2]
[420293821,1775920233201,-420.0,0.00010095,2]
[420293822,1775920233218,-379.0,0.00010095,2]
[420293824,1775920233231,-1680.0,0.00010095,2]
[420293825,1775920233245,-420.0,0.00010096,2]
[420293826,1775920233255,-151.0,0.00010105,2]
[420293827,1775920233271,-350.0,0.00010156,2]
[420293828,1775920233281,-151.0,0.0001016,2]
[420293829,1775920233295,-317.35,0.00010297,2]
[420293830,1775920233309,-350.0,0.00010316,2]
[420293831,1775920233320,-277.57,0.00010403,2]
[420293832,1775920233338,-350.0,0.00010424,2]
[420293833,1775920233351,-350.0,0.00010447,2]
[420293834,1775920233366,-150.0,0.000105,2]
[420293835,1775920233384,-10000.0,0.000105,2]
[420293836,1775920233399,-200.0,0.00010521,2]
[420293837,1775920233425,-771.01748645,0.00010521,2]
[420293838,1775920233437,-290.26104003,0.00010521,2]
[420293839,1775920233469,-2000.0,0.00010536,2]
[420293840,1775920233479,-250.0,0.0001054,2]
[420293841,1775920233504,-250.0,0.0001054,2]
[420293842,1775920233514,-250.0,0.0001054,2]
[420293843,1775920233524,-250.0,0.0001054,2]
[420293844,1775920233540,-250.0,0.0001054,2]
[420293845,1775920233551,-250.0,0.0001054,2]
[420293846,1775920233561,-1001.76292001,0.00010546,2]
[420293847,1775920233570,-255.0,0.00010571,2]
[420293848,1775920233585,-187.78006525,0.00010596,2]
[420293849,1775920233599,-150.0,0.000106,2]
[420293850,1775920233608,-1000.0,0.000106,2]
[420293851,1775920233619,-2500.0,0.000106,2]
[420293852,1775920233631,-503.40934377,0.000106,2]
[420293853,1775920233643,-3439.223,0.00010602,2]
[420293854,1775920233657,-200.084,0.00010602,2]
[420293855,1775920233675,-13707.85383016,0.00010607,2]
[420293856,1775920233687,-166.66,0.00010672,2]
[420293857,1775920233704,-500.0,0.00010673,2]
[420293858,1775920233717,-317.95866,0.00010673,2]
[420293859,1775920233731,-159.976,0.00010673,2]
[420293860,1775920233751,-159.984,0.00010673,2]
[420293861,1775920233762,-159.976,0.00010673,2]
[420293862,1775920233782,-159.9795,0.00010673,2]
[420293863,1775920233803,-157.49225069,0.00010673,2]
[420293864,1775920233814,-159.976,0.00010673,2]
[420293865,1775920233841,-160.003998,0.00010673,2]
[420293866,1775920233855,-500.0,0.00010673,2]
[420293867,1775920233891,-500.0,0.00010673,2]
[420293868,1775920233902,-349.14987639,0.00010673,2]
[420293869,1775920233929,-159.984,0.00010673,2]
[420293870,1775920233952,-500.0,0.00010673,2]
[420293871,1775920233975,-500.0,0.00010673,2]
[420293872,1775920233990,-223.96612989,0.00010673,2]
[420293873,1775920234006,-500.0,0.00010673,2]
[420293874,1775920234034,-500.51505804,0.00010673,2]
[420293875,1775920234047,-500.0,0.00010673,2]
[420293876,1775920234076,-500.0,0.00010673,2]
[420293877,1775920234086,-500.0,0.00010673,2]
[420293878,1775920234116,-151.0,0.00010697,2]
[420293879,1775920234135,-151.0,0.00010697,2]
[420293880,1775920234160,-151.0,0.00010697,2]
[420293881,1775920234188,-151.0,0.00010697,2]
[420293882,1775920234200,-151.0,0.00010697,2]
[420293883,1775920234215,-500.0,0.00010699,2]
[420293884,1775920234236,-500.0,0.00010699,2]
[420293885,1775920234247,-500.0,0.00010699,2]
[420293886,1775920234268,-500.0,0.00010699,2]
[420293887,1775920234286,-500.0,0.00010699,2]
[420293888,1775920234315,-500.0,0.00010699,2]
[420293889,1775920234329,-500.0,0.00010699,2]
[420293890,1775920234357,-500.0,0.00010699,2]
[420293891,1775920234371,-500.0,0.00010699,2]
[420293892,1775920234393,-500.0,0.00010699,2]
[420293893,1775920234402,-500.0,0.00010699,2]
[420293894,1775920234415,-500.0,0.00010699,2]
[420293895,1775920234430,-500.0,0.00010699,2]
[420293896,1775920234443,-500.0,0.00010699,2]
[420293897,1775920234456,-500.0,0.00010699,2]
[420293898,1775920234465,-500.0,0.00010699,2]
[420293899,1775920234482,-500.0,0.00010699,2]
[420293900,1775920234494,-500.0,0.00010699,2]
[420293901,1775920234505,-500.0,0.00010699,2]
[420293902,1775920234517,-500.0,0.00010699,2]
[420293903,1775920234529,-500.0,0.00010699,2]
[420293904,1775920234545,-356.50326885,0.00010699,2]
[420293905,1775920234554,-500.0,0.00010699,2]
[420293906,1775920234566,-500.0,0.00010699,2]
[420293907,1775920234580,-500.0,0.00010699,2]
[420293908,1775920234591,-500.0,0.00010699,2]
[420293909,1775920234603,-500.0,0.00010699,2]
[420293910,1775920234614,-500.0,0.00010699,2]
[420293911,1775920234630,-500.0,0.00010699,2]
[420293912,1775920234639,-500.0,0.00010699,2]
[420293913,1775920234651,-500.0,0.00010699,2]
[420293914,1775920234666,-500.0,0.00010699,2]
[420293915,1775920235021,-500.0,0.00010699,2]
[420293916,1775920235037,-500.0,0.00010699,2]
[420293917,1775920235046,-500.0,0.00010699,2]
[420293918,1775920235058,-500.0,0.00010699,2]
[420293919,1775920235071,-200.0,0.00010699,2]
[420293920,1775920235087,-500.0,0.00010699,2]
[420293921,1775920235098,-627.23557485,0.00010699,2]
[420293922,1775920235110,-500.0,0.00010699,2]
[420293923,1775920235134,-500.0,0.00010699,2]
[420293924,1775920235146,-267.1875806,0.00010699,2]
[420293925,1775920235157,-500.0,0.00010699,2]
[420293926,1775920235173,-290.5476369,0.00010699,2]
[420293927,1775920235185,-309.42434094,0.00010699,2]
[420293928,1775920235195,-621.42608573,0.00010699,2]
[420293929,1775920235212,-270.3844642,0.000107,2]
[420293930,1775920235222,-3769.17735674,0.000107,2]
[420293931,1775920235238,-31624.34227627,0.000107,2]
[420293932,1775920235254,-48664.16091807,0.000107,2]
[420293933,1775920235265,-52155.99654126,0.000107,2]
[420293934,1775920235290,-1051.54508863,0.000107,2]
[420293935,1775920238132,-1000.0,0.000106,2]
[420293936,1775920238151,-4753.47089063,0.000107,2]
[420293937,1775920238234,-198486.29132304,0.000107,2]
[420293938,1775920238347,-640.14698549,0.000107,2]
[420293943,1775920239936,-678.69,0.000107,2]
[420293962,1775920246224,-197376.13766915,0.000107,2]
[420293963,1775920246247,-1320.76175498,0.000107,2]